bitfinex/quotes_SOLUSD_20250102
["timestamp","ask_amount","ask_price","bid_price","bid_amount"]
[1735859457934,8.98147111,206.98,206.91,8.98147111]
[1735859458125,8.98147111,206.98,206.9,15.49437111]
[1735859458325,8.98147111,206.98,206.92,1.20993017]
[1735859458836,8.98147111,206.98,206.93,1.20993017]
[1735859459622,8.98147111,206.98,206.94,1.20993017]
[1735859460243,8.98147111,206.98,206.95,1.20993017]
[1735859460631,8.98147111,207.02,206.95,1.20993017]
[1735859460829,8.98147111,207.02,206.96,1.20993017]
[1735859461231,8.98147111,207.01,206.96,1.20993017]
[1735859461646,8.98147111,207.01,206.97,1.20993017]
[1735859462253,8.98147111,207.01,206.93,8.98147111]
[1735859462553,8.98147111,206.97,206.9,144.4129]
[1735859462757,8.98147111,206.93,206.9,6.5129]
[1735859462937,8.98147111,206.92,206.91,1.20999751]
[1735859466681,9.23245111,206.92,206.91,1.20999751]
[1735859467669,9.23245111,206.92,206.84,8.1694]
[1735859467878,8.98147111,206.9,206.84,8.1694]
[1735859468572,8.98147111,206.9,206.85,1.21024114]
[1735859469265,8.98147111,206.9,206.86,1.21024114]
[1735859469782,8.98147111,206.9,206.87,1.21024114]
[1735859470675,8.98147111,206.9,206.88,1.21024114]
[1735859471154,9.23245111,206.89,206.88,1.21024114]
[1735859471478,9.23245111,206.89,206.79,17.05217111]
[1735859471674,8.98147111,206.87,206.79,17.05217111]
[1735859472049,8.98147111,206.87,206.8,1.21042387]
[1735859472647,8.98147111,206.87,206.81,1.21042387]
[1735859473145,8.98147111,206.86,206.81,1.21042387]
[1735859473556,8.98147111,206.86,206.82,1.21042387]
[1735859473863,8.98147111,206.85,206.82,1.21042387]
[1735859474379,8.98147111,206.86,206.83,1.21042387]
[1735859474891,8.98147111,206.86,206.84,1.21042387]
[1735859475384,8.98147111,206.88,206.84,1.21042387]
[1735859475749,9.23245111,206.89,206.84,1.21042387]
[1735859475949,9.23245111,206.89,206.85,1.21042387]
[1735859476455,9.23245111,206.89,206.82,8.98147111]
[1735859476770,9.23245111,206.89,206.79,8.0707]
[1735859476994,9.23245111,206.89,206.82,8.98147111]
[1735859477472,8.98147111,206.87,206.8,10.19190876]
[1735859477966,8.98147111,206.87,206.81,1.21043765]
[1735859478673,8.98147111,206.87,206.82,1.21043765]
[1735859479377,8.98147111,206.87,206.83,1.21043765]
[1735859479970,8.98147111,206.87,206.84,1.21043765]
[1735859480582,8.98147111,206.87,206.8,8.98147111]
[1735859481380,8.98147111,206.85,206.81,1.21043796]
[1735859481769,48.00948444,206.9,206.81,1.21043796]
[1735859481770,8.98147111,206.82,206.81,1.21043796]
[1735859481987,8.98147111,206.82,206.75,8.98147111]
[1735859482183,8.98147111,206.82,206.74,176.88147111]
[1735859482387,8.98147111,206.82,206.75,8.98147111]
[1735859482684,8.98147111,206.82,206.76,1.21060252]
[1735859482989,8.98147111,206.81,206.76,1.21060252]
[1735859483153,8.98147111,206.8,206.76,1.21060252]
[1735859483357,8.98147111,206.8,206.77,1.21060252]
[1735859483882,8.98147111,206.81,206.77,1.21060252]
[1735859484086,8.98147111,206.82,206.78,1.21060252]
[1735859484759,8.98147111,206.82,206.75,8.98147111]
[1735859485082,8.98147111,206.82,206.75,8.85564009]
[1735859485583,8.98147111,206.82,206.76,1.21072873]
[1735859486183,0.25098,206.83,206.77,1.21072873]
[1735859486383,8.98147111,206.82,206.77,1.21072873]
[1735859487083,8.98147111,206.82,206.78,1.21072873]
[1735859487786,8.98147111,206.82,206.75,1.21072873]
[1735859488487,8.98147111,206.82,206.76,1.21072873]
[1735859489285,8.98147111,206.82,206.77,1.21072873]
[1735859489985,8.98147111,206.82,206.74,8.98147111]
[1735859490389,8.98147111,206.82,206.75,8.98147111]
[1735859490572,8.98147111,206.82,206.75,10.19219451]
[1735859491074,8.98147111,206.82,206.76,1.2107234]
[1735859491389,23.776884,206.86,206.78,8.98147111]
[1735859491591,8.98147111,206.86,206.79,8.98147111]
[1735859492031,8.98147111,206.85,206.78,8.98147111]
[1735859492590,8.98147111,206.85,206.79,1.2106241]
[1735859492887,8.98147111,206.84,206.79,1.2106241]
[1735859493186,8.98147111,206.84,206.77,8.98147111]
[1735859493791,8.98147111,206.84,206.78,1.21058305]
[1735859494489,8.98147111,206.84,206.79,1.21058305]
[1735859494670,8.98147111,206.85,206.79,1.21058305]
[1735859495393,8.98147111,206.87,206.8,10.19205416]
[1735859495566,8.98147111,206.86,206.8,1.21058305]
[1735859496091,8.98147111,206.86,206.81,1.21058305]
[1735859496396,8.98147111,206.86,206.79,8.98147111]
[1735859497386,8.98147111,206.86,206.8,1.21051836]
[1735859497887,8.98147111,206.86,206.81,1.21051836]
[1735859498194,8.98147111,206.85,206.81,1.21051836]
[1735859498694,8.98147111,206.85,206.79,8.98147111]
[1735859499293,8.98147111,206.85,206.76,167.9]
[1735859499475,8.98147111,206.85,206.78,8.98147111]
[1735859499679,8.98147111,206.85,206.8,1.21053847]
[1735859500493,8.98147111,206.85,206.81,1.21053847]
[1735859501300,8.98147111,206.85,206.78,8.98147111]
[1735859502095,8.98147111,206.85,206.79,1.21055114]
[1735859502694,8.98147111,206.85,206.8,1.21055114]
[1735859503325,8.98147111,206.85,206.81,1.21055114]
[1735859504316,8.98147111,206.82,206.74,8.98147111]
[1735859504487,8.98147111,206.81,206.74,8.98147111]
[1735859504687,8.98147111,206.81,206.75,1.21066918]
[1735859505493,8.98147111,206.81,206.76,1.21066918]
[1735859506123,8.98147111,206.81,206.77,1.21066918]
[1735859506915,8.98147111,206.81,206.78,1.21066918]
[1735859507099,8.98147111,206.82,206.78,1.21066918]
[1735859507492,8.98147111,206.82,206.79,1.21066918]
[1735859508414,8.98147111,206.82,206.8,1.21066918]
[1735859509024,8.98147111,206.82,206.75,8.98147111]
[1735859509617,8.98147111,206.83,206.76,10.19220908]
[1735859510423,8.98147111,206.83,206.77,1.21073797]
[1735859510790,8.98147111,206.83,206.78,1.21073797]
[1735859511397,8.98147111,206.83,206.79,1.21073797]
[1735859512223,8.98147111,206.83,206.8,1.21073797]
[1735859512536,8.98147111,206.85,206.8,1.21073797]
[1735859512902,8.98147111,206.85,206.81,1.21073797]
[1735859513422,8.98147111,206.85,206.82,1.21073797]
[1735859513620,8.98147111,206.83,206.82,1.21073797]
[1735859515292,8.98147111,206.84,206.82,1.21073797]
[1735859515708,8.98147111,206.84,206.83,1.21073797]
[1735859523728,8.98147111,206.85,206.83,1.21073797]
[1735859524725,8.98147111,206.85,206.84,1.21073797]
[1735859525515,8.98147111,206.86,206.84,1.21073797]
[1735859526004,8.98147111,206.87,206.84,1.21073797]
[1735859526635,8.98147111,206.87,206.85,1.21073797]
[1735859527034,8.98147111,206.87,206.86,1.21073797]
[1735859528911,8.98147111,206.87,206.79,30.0]
[1735859529227,8.98147111,206.86,206.79,38.98147111]
[1735859529733,8.98147111,206.86,206.8,1.21050772]
[1735859530338,8.98147111,206.85,206.81,1.21050772]
[1735859530637,8.98147111,206.84,206.81,1.21050772]
[1735859530927,8.98147111,206.84,206.82,1.21050772]
[1735859531727,8.98147111,206.84,206.83,1.21050772]
[1735859532040,8.98147111,206.84,206.76,176.88147111]
[1735859532832,8.98147111,206.79,206.73,37.5969]
[1735859533303,8.98147111,206.79,206.74,1.21077141]
[1735859533828,8.98147111,206.79,206.75,1.21077141]
[1735859534134,8.98147111,206.8,206.75,1.21077141]
[1735859534504,8.98147111,206.8,206.76,1.21077141]
[1735859535331,8.98147111,206.8,206.77,1.21077141]
[1735859536007,8.98147111,206.8,206.78,1.21077141]
[1735859536727,8.98147111,206.81,206.79,1.21077141]
[1735859537411,8.98147111,206.81,206.8,1.21077141]
[1735859538435,12.0848,206.87,206.8,1.21077141]
[1735859538738,8.98147111,206.85,206.8,1.21077141]
[1735859538912,8.98147111,206.85,206.81,1.21077141]
[1735859539419,8.98147111,206.85,206.82,1.21077141]
[1735859539615,12.0832,206.9,206.82,1.21077141]
[1735859539825,12.0832,206.9,206.82,10.19224252]
[1735859540127,8.98147111,206.88,206.83,1.21077141]
[1735859540330,8.98147111,206.86,206.83,1.21077141]
[1735859540718,8.98147111,206.86,206.84,1.21077141]
[1735859541243,0.25098,206.89,206.84,1.21077141]
[1735859541416,8.98147111,206.88,206.85,1.21077141]
[1735859541616,8.98147111,206.87,206.85,1.21077141]
[1735859542139,8.98147111,206.87,206.86,1.21077141]
[1735859545119,9.23245111,206.87,206.86,1.21077141]
[1735859545316,33.00933511,206.87,206.86,1.21077141]
[1735859545524,0.25098,206.86,206.76,30.0]
[1735859545718,8.98147111,206.83,206.76,38.98147111]
[1735859545939,8.98147111,206.84,206.76,38.98147111]
[1735859546143,8.98147111,206.84,206.77,1.21060817]
[1735859546528,8.98147111,206.84,206.78,1.2106131]
[1735859547448,8.98147111,206.83,206.76,8.98147111]
[1735859547624,8.98147111,206.82,206.75,8.98147111]
[1735859547826,8.98147111,206.81,206.74,38.98147111]
[1735859549748,20.0,206.89,206.76,8.98147111]
[1735859549932,8.98147111,206.83,206.76,8.98147111]
[1735859552635,8.98147111,206.84,206.76,8.98147111]
[1735859555648,0.25098,206.86,206.78,8.98147111]
[1735859555649,8.98147111,206.85,206.78,8.98147111]
[1735859555823,8.98147111,206.86,206.78,8.98147111]
[1735859556242,8.98147111,206.86,206.77,30.0]
[1735859556243,8.98147111,206.87,206.79,8.98147111]
[1735859556753,8.98147111,206.87,206.8,8.98147111]
[1735859556931,8.98147111,206.88,206.8,8.98147111]
[1735859557551,8.98147111,206.88,206.81,8.98147111]
[1735859558153,8.98147111,206.89,206.82,8.98147111]
[1735859558846,8.98147111,206.88,206.83,1.21044545]
[1735859559563,8.98147111,206.88,206.84,1.21044545]
[1735859559758,8.98147111,206.89,206.84,1.21044545]
[1735859560352,8.98147111,206.89,206.85,1.21044545]
[1735859561045,8.98147111,206.89,206.86,1.21044545]
[1735859561826,8.98147111,206.89,206.87,1.21044545]
[1735859562554,8.98147111,206.89,206.82,8.98147111]
[1735859563356,8.98147111,206.89,206.83,1.2103561]
[1735859563952,8.98147111,206.89,206.84,1.2103561]
[1735859564743,8.98147111,206.89,206.85,1.2103561]
[1735859565262,8.98147111,206.89,206.86,1.2103561]
[1735859566033,8.98147111,206.89,206.87,1.2103561]
[1735859566840,8.98147111,206.89,206.82,8.98147111]
[1735859567448,12.0813,206.94,206.83,38.98147111]
[1735859567760,12.0813,206.94,206.84,8.98147111]
[1735859567761,8.98147111,206.91,206.84,8.98147111]
[1735859568262,8.98147111,206.91,206.85,1.21035561]
[1735859569053,8.98147111,206.91,206.86,1.21035561]
[1735859569871,8.98147111,206.91,206.87,1.21035561]
[1735859570049,8.98147111,206.9,206.87,1.21035561]
[1735859570435,8.98147111,206.9,206.88,1.21035561]
[1735859571175,8.98147111,206.9,206.89,1.21035561]
[1735859573142,7.7222,207.0,206.89,8.98147111]
[1735859573474,20.0,206.97,206.89,8.98147111]
[1735859573648,8.98147111,206.95,206.89,8.98147111]
[1735859573848,8.98147111,206.95,206.9,1.2099768]
[1735859574671,8.98147111,206.95,206.91,1.2099768]
[1735859575073,8.98147111,206.93,206.91,1.2099768]
[1735859575280,24.027864,206.96,206.92,1.2099768]
[1735859576153,24.027864,206.96,206.88,1.2099768]
[1735859576467,8.98147111,206.91,206.88,1.2099768]
[1735859576875,8.98147111,206.91,206.89,1.2099768]
[1735859577164,8.98147111,206.9,206.89,1.2099768]
[1735859578380,8.98147111,206.9,206.84,1.2099768]
[1735859578554,8.98147111,206.87,206.84,1.2099768]
[1735859578756,8.98147111,206.88,206.84,1.2099768]
[1735859579271,8.98147111,206.88,206.85,1.2099768]
[1735859579579,8.98147111,206.89,206.85,1.2099768]
[1735859579873,8.98147111,206.89,206.86,1.2099768]
[1735859580364,8.98147111,206.9,206.86,1.2099768]
[1735859580569,8.98147111,206.91,206.87,1.2099768]
[1735859581278,8.98147111,206.91,206.88,1.2099768]
[1735859581575,8.98147111,206.94,206.88,1.2099768]
[1735859581875,8.98147111,206.94,206.89,1.2099768]
[1735859582173,8.98147111,206.93,206.89,1.2099768]
[1735859582558,8.98147111,206.93,206.9,1.2099768]
[1735859583071,8.98147111,206.93,206.86,8.98147111]
[1735859583250,8.98147111,206.94,206.87,8.98147111]
[1735859583857,8.98147111,206.94,206.88,1.21006683]
[1735859584378,8.98147111,206.94,206.89,1.21006683]
[1735859584682,0.25098,206.97,206.89,10.19153794]
[1735859584870,8.98147111,206.97,206.9,8.98147111]
[1735859585179,8.98147111,206.97,206.9,10.19153794]
[1735859585679,8.98147111,206.97,206.91,1.21006683]
[1735859586387,8.98147111,206.97,206.92,1.21006683]
[1735859586964,8.98147111,206.98,206.9,8.98147111]
[1735859587293,8.98147111,206.98,206.91,8.98147111]
[1735859587588,8.98147111,206.97,206.9,8.98147111]
[1735859587882,8.98147111,206.96,206.89,15.63507111]
[1735859588292,8.98147111,206.96,206.9,1.20992822]
[1735859588986,8.98147111,206.96,206.91,1.20992822]
[1735859589769,8.98147111,206.96,206.92,1.20992822]
[1735859590385,8.98147111,206.96,206.89,15.63507111]
[1735859590892,8.98147111,206.94,206.89,6.6536]
[1735859591190,8.98147111,206.92,206.9,1.20993215]
[1735859591390,8.98147111,206.93,206.9,1.20993215]
[1735859591688,8.98147111,206.93,206.91,1.20993215]
[1735859592392,8.98147111,206.93,206.89,6.6536]
[1735859592976,8.98147111,206.94,206.89,6.6536]
[1735859593177,8.98147111,206.94,206.9,1.20998164]
[1735859593803,8.98147111,206.96,206.91,1.20998164]
[1735859594202,8.98147111,206.96,206.92,1.20998164]
[1735859594497,0.25098,206.99,206.92,1.20998164]
[1735859594695,8.98147111,206.97,206.92,1.20998164]
[1735859594900,8.98147111,206.97,206.91,8.98147111]
[1735859596200,8.98147111,206.97,206.92,1.20989245]
[1735859596507,8.98147111,206.97,206.93,1.20989245]
[1735859597299,8.98147111,206.94,206.83,31.5316]
[1735859597476,8.98147111,206.94,206.87,8.98147111]
[1735859597802,8.98147111,206.93,206.86,38.98147111]
[1735859598101,8.98147111,206.93,206.88,1.21005419]
[1735859598705,8.98147111,206.93,206.89,1.21005419]
[1735859599406,8.98147111,206.93,206.9,1.21005419]
[1735859599705,8.98147111,206.94,206.9,1.21005419]
[1735859599909,8.98147111,206.95,206.9,1.21005419]
[1735859600097,8.98147111,206.95,206.91,1.21005419]
[1735859600302,8.98147111,206.96,206.91,1.21005419]
[1735859600501,8.98147111,206.97,206.91,1.21005419]
[1735859600820,8.98147111,206.98,206.91,8.98147111]
[1735859601491,8.98147111,206.97,206.92,1.20993966]
[1735859601895,8.98147111,206.98,206.92,1.20993966]
[1735859602211,8.98147111,206.98,206.93,1.20993966]
[1735859602702,8.98147111,206.98,206.94,1.20993966]
[1735859603310,8.98147111,206.98,206.95,1.20993966]
[1735859603487,8.98147111,206.97,206.95,1.20993966]
[1735859603682,12.075,207.04,206.95,1.20993966]
[1735859603896,8.98147111,207.0,206.93,8.98147111]
[1735859604499,8.98147111,207.0,206.94,1.20986618]
[1735859605287,8.98147111,207.0,206.95,1.20986618]
[1735859605487,12.075,207.04,206.95,1.20986618]
[1735859605688,8.98147111,207.02,206.95,10.19133729]
[1735859605985,8.98147111,207.02,206.96,1.20986618]
[1735859606182,8.98147111,207.03,206.96,1.20986618]
[1735859606612,8.98147111,207.03,206.97,1.20986618]
[1735859607304,8.98147111,207.03,206.98,1.20986618]
[1735859608016,24.027864,206.98,206.86,167.9]
[1735859608220,8.98147111,206.92,206.86,167.9]
[1735859608689,8.98147111,206.92,206.87,1.20999743]
[1735859609410,8.98147111,206.92,206.88,1.20999743]
[1735859609993,8.98147111,206.92,206.89,1.20999743]
[1735859610822,8.98147111,206.92,206.9,1.20999743]
[1735859611418,8.98147111,206.92,206.91,1.20999743]
[1735859611923,8.98147111,206.93,206.91,1.20999743]
[1735859613119,8.98147111,206.93,206.92,1.20999743]
[1735859614694,8.98147111,206.94,206.92,1.20999743]
[1735859615126,8.98147111,206.94,206.86,38.98147111]
[1735859615619,8.98147111,206.94,206.86,30.0]
[1735859615788,8.98147111,206.94,206.86,38.98147111]
[1735859615984,8.98147111,206.94,206.87,1.21007015]
[1735859616314,25.627364,206.98,206.87,1.21007015]
[1735859616520,8.98147111,206.94,206.88,1.21007015]
[1735859617020,20.0,207.02,206.9,8.98147111]
[1735859617214,8.98147111,206.97,206.9,8.98147111]
[1735859618325,8.98147111,206.97,206.91,1.21007015]
[1735859618527,8.98147111,206.98,206.91,1.21007015]
[1735859618916,8.98147111,206.98,206.92,1.21007015]
[1735859619523,8.98147111,206.98,206.93,1.21007015]
[1735859620321,8.98147111,206.98,206.94,1.21007015]
[1735859620526,8.98147111,206.97,206.94,1.21007015]
[1735859621120,8.98147111,206.97,206.95,1.21007015]
[1735859621723,8.98147111,206.97,206.9,8.98147111]
[1735859622527,8.98147111,206.97,206.91,1.20992292]
[1735859623328,8.98147111,206.97,206.92,1.20992292]
[1735859623515,8.98147111,206.96,206.92,1.20992292]
[1735859624309,8.98147111,206.96,206.93,1.20992292]
[1735859624825,8.98147111,206.97,206.94,1.20992292]
[1735859625526,8.98147111,206.97,206.95,1.20992292]
[1735859626128,8.98147111,206.97,206.96,1.20992292]
[1735859630497,8.98147111,206.97,206.9,8.98147111]
[1735859630726,8.98147111,206.97,206.96,1.20987303]
[1735859635757,8.98147111,206.98,206.96,1.20987303]
[1735859636436,8.98147111,206.97,206.9,8.98147111]
[1735859636934,8.98147111,206.94,206.89,137.9]
[1735859637166,8.98147111,206.93,206.86,8.98147111]
[1735859637444,8.98147111,206.92,206.9,1.20993334]
[1735859637835,8.98147111,206.93,206.9,1.20993334]
[1735859638147,8.98147111,206.93,206.91,1.20993334]
[1735859638356,8.98147111,206.94,206.91,1.20993334]
[1735859638727,8.98147111,206.94,206.92,1.20993334]
[1735859639455,8.98147111,206.94,206.93,1.20993334]
[1735859640167,32.0761,207.02,206.93,1.20993334]
[1735859640460,8.98147111,206.98,206.93,1.20993334]
[1735859640752,0.12549,207.01,206.94,1.20993334]
[1735859640930,24.027864,207.01,206.94,1.20993334]
[1735859641123,8.98147111,206.99,206.94,1.20993334]
[1735859641318,8.98147111,206.99,206.95,1.20993334]
[1735859641639,8.98147111,206.98,206.95,1.20993334]
[1735859641949,8.98147111,206.98,206.96,1.20993334]
[1735859642738,8.98147111,206.97,206.9,8.98147111]
[1735859643443,8.98147111,206.97,206.91,1.20983518]
[1735859643623,8.98147111,206.98,206.91,10.19130629]
[1735859644248,8.98147111,206.98,206.92,1.20983518]
[1735859644428,8.98147111,206.99,206.92,1.20983518]
[1735859644847,8.98147111,206.99,206.93,1.20983518]
[1735859645550,8.98147111,206.99,206.94,1.20983518]
[1735859645844,8.98147111,207.01,206.94,10.19130629]
[1735859646055,8.98147111,207.02,206.95,8.98147111]
[1735859646350,8.98147111,207.02,206.95,10.19130629]
[1735859646955,8.98147111,207.02,206.96,1.20983518]
[1735859647451,8.98147111,207.0,206.96,1.20983518]
[1735859647832,8.98147111,207.0,206.97,1.20983518]
[1735859648254,8.98147111,207.0,206.98,1.20983518]
[1735859648953,8.98147111,207.0,206.93,8.98147111]
[1735859649252,8.98147111,207.01,206.94,8.98147111]
[1735859649754,8.98147111,207.0,206.94,1.20972901]
[1735859650655,8.98147111,207.0,206.95,1.20972901]
[1735859650958,8.98147111,206.97,206.95,1.20972901]
[1735859651439,8.98147111,206.97,206.96,1.20972901]
[1735859653952,8.98147111,206.98,206.96,1.20972901]
[1735859654547,8.98147111,206.98,206.97,1.20972901]
[1735859656661,33.00933511,206.98,206.97,1.20972901]
[1735859657757,24.027864,206.97,206.86,6.616]
[1735859657957,8.98147111,206.91,206.86,6.616]
[1735859658258,8.98147111,206.91,206.87,1.21002705]
[1735859658447,8.98147111,206.89,206.87,1.21002705]
[1735859658958,8.98147111,206.89,206.88,1.21002705]
[1735859659658,8.98147111,206.9,206.88,1.21002705]
[1735859660263,8.98147111,206.9,206.89,1.21002705]
[1735859662060,8.98147111,206.91,206.89,1.21002705]
[1735859662858,8.98147111,206.9,206.89,1.21002705]
[1735859663244,8.98147111,206.9,206.83,146.88147111]
[1735859663830,8.98147111,206.9,206.84,1.21018583]
[1735859664160,8.98147111,206.88,206.84,1.21018583]
[1735859664740,8.98147111,206.89,206.85,1.21018583]
[1735859665659,8.98147111,206.89,206.86,1.21018583]
[1735859666258,8.98147111,206.89,206.87,1.21018583]
[1735859666761,8.98147111,206.9,206.87,1.21018583]
[1735859666946,8.98147111,206.9,206.88,1.21018583]
[1735859667559,8.98147111,206.9,206.89,1.21018583]
[1735859668566,8.98147111,206.91,206.89,1.21018583]
[1735859669069,8.98147111,206.91,206.83,8.98147111]
[1735859670062,8.98147111,206.91,206.84,1.21019979]
[1735859670360,8.98147111,206.91,206.83,8.98147111]
[1735859670563,8.98147111,206.91,206.82,169.4233]
[1735859670564,0.25098,206.95,206.86,8.98147111]
[1735859670753,8.98147111,206.94,206.86,8.98147111]
[1735859671472,23.776884,206.93,206.87,1.21020433]
[1735859672151,8.98147111,206.92,206.88,1.21020433]
[1735859672865,8.98147111,206.92,206.89,1.21020433]
[1735859673469,8.98147111,206.92,206.9,1.21020433]
[1735859673970,8.98147111,206.91,206.9,1.21020433]
[1735859674275,9.23245111,206.91,206.82,31.5233]
[1735859674448,8.98147111,206.88,206.82,31.5233]
[1735859674770,8.98147111,206.88,206.83,1.21023868]
[1735859674973,8.98147111,206.89,206.83,1.21023868]
[1735859675677,8.98147111,206.89,206.84,1.21023868]
[1735859676175,23.776884,206.89,206.83,8.98147111]
[1735859676350,8.98147111,206.91,206.84,8.98147111]
[1735859676555,8.98147111,206.91,206.85,1.21024154]
[1735859676850,23.776884,206.93,206.86,8.98147111]
[1735859677175,23.776884,206.93,206.87,8.98147111]
[1735859677474,23.776884,206.93,206.86,10.19171265]
[1735859677861,8.98147111,206.95,206.88,8.98147111]
[1735859678065,35.92588444,207.0,206.87,1.21024154]
[1735859678066,8.98147111,206.96,206.89,8.98147111]
[1735859678266,8.98147111,206.95,206.88,8.98147111]
[1735859678462,8.98147111,206.94,206.87,148.09171265]
[1735859678656,8.98147111,206.94,206.9,1.21024154]
[1735859679578,8.98147111,206.94,206.91,1.21024154]
[1735859679962,8.98147111,206.93,206.91,1.21024154]
[1735859680475,8.98147111,206.93,206.86,176.88147111]
[1735859681075,8.98147111,206.93,206.87,1.21001341]
[1735859681473,8.98147111,206.93,206.88,1.21001341]
[1735859681775,8.98147111,206.94,206.88,1.21001341]
[1735859682181,8.98147111,206.94,206.89,1.21001341]
[1735859682978,8.98147111,206.94,206.9,1.21001341]
[1735859683677,8.98147111,206.94,206.91,1.21001341]
[1735859683867,24.027864,206.99,206.91,1.21001341]
[1735859684067,8.98147111,206.94,206.91,1.21001341]
[1735859684268,8.98147111,206.94,206.87,8.98147111]
[1735859685079,5.85227822,206.94,206.88,1.2100164]
[1735859685668,5.85227822,206.94,206.89,1.2100164]
[1735859686684,5.85227822,206.94,206.9,1.2100164]
[1735859687281,5.85227822,206.94,206.91,1.2100164]
[1735859687875,5.85227822,206.94,206.87,8.98147111]
[1735859688486,5.85227822,206.94,206.88,1.21002072]
[1735859689384,5.85227822,206.94,206.89,1.21002072]
[1735859689785,5.85227822,206.94,206.9,1.21002072]
[1735859689982,24.027864,206.99,206.9,1.21002072]
[1735859690188,8.98147111,206.94,206.91,1.21002072]
[1735859690879,8.98147111,206.94,206.92,1.21002072]
[1735859691664,8.98147111,206.94,206.87,8.98147111]
[1735859692498,8.98147111,206.94,206.88,1.20998588]
[1735859693688,8.98147111,206.94,206.89,1.20998588]
[1735859694706,8.98147111,206.94,206.9,1.20998588]
[1735859695393,8.98147111,206.94,206.87,8.98147111]
[1735859695394,8.98147111,206.94,206.91,1.20998588]
[1735859695689,23.776884,206.94,206.91,1.20998588]
[1735859695894,0.25098,206.99,206.91,1.20998588]
[1735859695895,23.776884,206.95,206.91,1.20998588]
[1735859696199,32.75835511,206.95,206.92,1.20998588]
[1735859696593,32.75835511,206.95,206.93,1.20998588]
[1735859697296,32.75835511,206.95,206.88,8.98147111]
[1735859697995,23.776884,206.95,206.89,1.20998024]
[1735859698371,8.98147111,206.95,206.89,1.20998024]
[1735859698583,8.98147111,206.95,206.9,1.20998024]
[1735859699296,8.98147111,206.94,206.91,1.20998024]
[1735859699778,8.98147111,206.95,206.92,1.20998024]
[1735859700895,8.98147111,206.95,206.93,1.20998024]
[1735859701495,8.98147111,206.95,206.87,8.98147111]
[1735859702237,8.98147111,206.95,206.88,1.21002023]
[1735859703000,8.98147111,206.95,206.89,1.21002023]
[1735859703896,8.98147111,206.95,206.9,1.21002023]
[1735859704597,8.98147111,206.95,206.91,1.21002023]
[1735859705297,8.98147111,206.95,206.92,1.21002023]
[1735859705805,8.98147111,206.93,206.92,1.21002023]
[1735859706001,23.776884,206.92,206.83,176.88147111]
[1735859706210,23.776884,206.89,206.83,30.0]
[1735859706398,32.75835511,206.89,206.83,30.0]
[1735859706712,32.75835511,206.89,206.84,1.21008037]
[1735859707390,32.75835511,206.89,206.85,1.21008037]
[1735859708011,32.75835511,206.89,206.86,1.21008037]
[1735859708804,32.75835511,206.89,206.87,1.21008037]
[1735859709007,23.776884,206.89,206.87,1.21008037]
[1735859709307,23.776884,206.89,206.88,1.21008037]
[1735859709715,8.98147111,206.92,206.88,1.21008037]
[1735859710089,10.53047111,206.94,206.88,1.21008037]
[1735859710293,8.98147111,206.96,206.89,8.98147111]
[1735859710526,8.98147111,206.96,206.89,10.19155148]
[1735859711018,23.776884,206.95,206.89,10.19155148]
[1735859711224,8.98147111,206.95,206.9,1.21008037]
[1735859711403,8.98147111,206.94,206.9,1.21008037]
[1735859711805,32.75835511,206.92,206.91,1.21008037]
[1735859712020,33.00933511,206.92,206.91,1.21008037]
[1735859712406,23.776884,206.91,206.84,137.9]
[1735859712610,23.776884,206.89,206.83,8.98147111]
[1735859713129,23.776884,206.89,206.84,1.21020773]
[1735859713816,8.98147111,206.89,206.85,1.21020773]
[1735859714521,8.98147111,206.89,206.86,1.21020773]
[1735859715230,8.98147111,206.89,206.87,1.21020773]
[1735859716396,8.98147111,206.89,206.88,1.21020773]
[1735859717721,23.776884,206.89,206.83,8.98147111]
[1735859718228,23.776884,206.89,206.84,1.2103376]
[1735859718739,23.776884,206.89,206.85,1.2103376]
[1735859719521,23.776884,206.89,206.86,1.2103376]
[1735859719733,8.98147111,206.89,206.86,1.2103376]
[1735859719912,32.75835511,206.87,206.86,1.2103376]
[1735859720111,32.75835511,206.87,206.77,30.0]
[1735859720312,8.98147111,206.85,206.78,8.98147111]
[1735859720817,8.98147111,206.85,206.79,1.21042953]
[1735859721726,8.98147111,206.83,206.8,1.21042953]
[1735859721933,8.98147111,206.82,206.8,1.21042953]
[1735859722233,8.98147111,206.83,206.81,1.21042953]
[1735859722916,32.75835511,206.83,206.82,1.21042953]
[1735859723729,23.776884,206.82,206.77,8.98147111]
[1735859724024,8.98147111,206.84,206.77,8.98147111]
[1735859724533,23.776884,206.83,206.78,1.21066515]
[1735859725327,23.776884,206.83,206.79,1.21066515]
[1735859726131,23.776884,206.83,206.77,8.98147111]
[1735859726732,23.776884,206.83,206.78,1.21068211]
[1735859726932,8.98147111,206.87,206.8,8.98147111]
[1735859727514,23.776884,206.86,206.8,8.98147111]
[1735859727735,23.776884,206.86,206.81,1.21068211]
[1735859728231,8.98147111,206.88,206.81,10.19215322]
[1735859728438,23.776884,206.87,206.83,8.98147111]
[1735859728934,24.027864,206.89,206.83,8.98147111]
[1735859731035,24.027864,206.89,206.82,8.98147111]
[1735859731433,9.23245111,206.89,206.82,8.98147111]